Cogmind - Beta 16 @@@ ROGUE MODE // 2026.02.09 @ 16:25:33 Player: ae Result: Destroyed by as-59486 with Assembled Blade Performance ------------- Evolutions (0) 0 Regions Visited (4) 800 Robots Destroyed (16) 80 Value Destroyed (314) 314 Prototype IDs (23) 460 Alien Tech Used (0) 0 Bonus (300) 300 TOTAL SCORE: 1954 Bonus ------- Aligned with FarCom 300 Cogmind --------- Core Integrity 0/250 Matter 257/300 Energy 62/250 System Corruption 3% Temperature Cool (0) Movement Rolling (145) Ox3 Location -9/Mines Parts ------- > --- POWER (1) -------- Ion Engine > --- PROPULSION (2) --- Compact Wheel > --- UTILITY (2) ------ Improved Heat Sink High-capacity Storage Unit > --- WEAPON (2) ------- YOLO Cannon > --- INVENTORY (20) --- Ion Engine Light Ion Engine Aluminum Leg Aluminum Leg Wheel Compact Wheel Hover Unit Tractor Beam Medium Laser Small Laser Light Assault Rifle Peak State ------------ > --- POWER ------------ Ion Engine > --- PROPULSION ------- Compact Wheel > --- UTILITY ---------- Improved Heat Sink High-capacity Storage Unit > --- WEAPON ----------- YOLO Cannon > --- INVENTORY -------- Ion Engine Light Ion Engine Aluminum Leg Aluminum Leg Wheel Compact Wheel Hover Unit Tractor Beam Medium Laser Small Laser Light Assault Rifle [Rating: 27] Favorites ----------- Power Light Nuclear Core Engine Ion Engine Power Core Light Nuclear Core Propulsion Light Treads Treads Light Treads Leg Aluminum Leg Wheel Compact Wheel Utility High-capacity Storage Unit Device Structural Scanner Storage High-capacity Storage Unit Weapon Medium Laser Energy Gun Medium Laser Energy Cannon YOLO Cannon Launcher Grenade Launcher Build | -11 -10 -10 -10 -9 ------- Run | Yrd Mat Min Exi Min Slots Evolved . | . . . . . Power . | . . . . . Propulsion . | . . . . . Utility . | . . . . . Weapon . | . . . . . Parts Attached 18 | 7 8 1 . 2 Power 3 | 1 1 . . 1 Engine 2 | 1 . . . 1 Core 1 | . 1 . . . Reactor . | . . . . . Propulsion 4 | 2 2 . . . Treads 2 | 2 . . . . Leg 1 | . 1 . . . Wheel 1 | . 1 . . . Hover . | . . . . . Flight . | . . . . . Utility 5 | 2 2 1 . . Device 3 | 1 1 1 . . Storage 2 | 1 1 . . . Processor . | . . . . . Hackware . | . . . . . Protection . | . . . . . Artifact . | . . . . . Weapon 6 | 2 3 . . 1 Energy Gun 3 | 2 1 . . . Energy Cannon 1 | . . . . 1 Ballistic Gun . | . . . . . Ballistic Cannon . | . . . . . Launcher 2 | . 2 . . . Special Weapon . | . . . . . Impact Weapon . | . . . . . Slashing Weapon . | . . . . . Piercing Weapon . | . . . . . Special Melee Weapon . | . . . . . Unidentified Prototypes . | . . . . . Parts Lost 6 | . 2 . . 4 Power 1 | . . . . 1 Propulsion 1 | . . . . 1 Utility 1 | . . . . 1 Weapon 3 | . 2 . . 1 Highest Loss Streak 3 | . 2 . . 3 To Critical Strikes . | . . . . . Average Backups 9 | 4 7 8 12 13 Power 2 | . 1 2 3 3 Propulsion 4 | 3 4 4 5 5 Utility 1 | . . 1 2 2 Weapon 1 | . . 1 2 3 Tool/Special . | . . . . . Unused Backups 6 | . . . . 6 Power 1 | . . . . 1 Propulsion 4 | . . . . 4 Utility . | . . . . . Weapon 1 | . . . . 1 Tool/Special . | . . . . . Average Slot Usage (%) 98 | . 98 100 100 91 Engine 2 | . 7 . . . Core 11 | . 6 14 14 12 Treads 12 | . 9 14 14 12 Leg 3 | . 9 . . . Wheel 12 | . 8 14 14 14 Device 13 | . 14 14 14 10 Storage 14 | . 14 14 14 14 Energy Gun 24 | . 23 18 28 26 Launcher 2 | . 2 9 . . Peak Build Rating 27 | 7 11 11 12 27 Average Rating 9 | 5 8 10 10 11 On Entrance 8 | . 7 11 10 12 Avg Prop Armor Cover (%) 12 | . 10 12 14 14 Naked Turns . | . . . . . Heaviest Build 50 | 15 50 50 49 49 Greatest Support 40 | 40 40 16 16 16 Greatest Overweight (x) 3 | . 3 3 3 3 Average Overweight (x) 2 | . . 3 3 2 Largest Inventory Capacity 20 | 8 20 20 20 20 Average Capacity 15 | 7 8 20 20 20 Most Carried 15 | 7 8 12 14 15 Average Carried 10 | 4 7 8 12 13 Final Capacity 20 | 8 20 20 20 20 Final Carried 14 | 7 8 12 14 11 Class Distribution -------------------- 100% | Mutant Dominant Class ---------------- Mutant | -10/Materials Mutant | -10/Mines Mutant | -10/Exiles Mutant | -9/Mines Resources | -11 -10 -10 -10 -9 ----------- Run | Yrd Mat Min Exi Min Matter Collected 492 | 252 178 50 . 12 Remotely 224 | 96 128 . . . Salvage Created 472 | 71 332 37 . 32 Parts 31 | 2 21 8 . . Haulers Intercepted . | . . . . . Recyclers Shooed 2 | . 1 1 . . Parts Field Recycled . | . . . . . Retrieved Matter . | . . . . . Parts Self-Destructed . | . . . . . Prevented . | . . . . . Parts Restored . | . . . . . Kills | -11 -10 -10 -10 -9 ------- Run | Yrd Mat Min Exi Min Combat Hostiles Destroyed 12 | . 6 3 . 3 Guns 5 | . 3 . . 2 AOE 7 | . 3 3 . 1 Classes Destroyed 6 | 1 3 1 . 1 Worker 1 | . 1 . . . Builder 3 | . 2 1 . . Recycler 3 | 1 2 . . . Swarmer 3 | . . 3 . . Grunt 6 | . 6 . . . Assembled 3 | . . . . 3 Best Kill Streak 3 | 1 3 3 . 2 Combat Bots Only 3 | . 2 3 . 2 Max Kills in Single Turn 3 | 1 1 3 . 1 Gunslinging . | . . . . . Exploded 3 | . 1 3 . 1 Melee . | . . . . . Uniques/NPCs Destroyed . | . . . . . Combat | -11 -10 -10 -10 -9 -------- Run | Yrd Mat Min Exi Min Hostile Shots Fired 64 | . 38 1 . 25 Missed 9 | . 5 . . 4 Hits 55 | . 33 1 . 21 Melee 10 | . . . . 10 Projectile 45 | . 33 1 . 11 Critical Strikes 2 | . 1 . . 1 Part Disruptions 1 | . . . . 1 Damage Taken 1026 | . 461 21 . 544 Core 251 | . 79 7 . 165 Absorbed by Shields . | . . . . . Core Remaining (%) 100 | 100 . . . . Volleys Fired 51 | 2 38 4 . 7 Largest 2 | 2 2 2 . 2 Hottest 100 | 100 100 90 . 90 Shots Fired 98 | 4 72 8 . 14 Gun 88 | 4 65 7 . 12 Cannon . | . . . . . Launcher 10 | . 7 1 . 2 Special . | . . . . . Kinetic . | . . . . . Thermal 88 | 4 65 7 . 12 Explosive 10 | . 7 1 . 2 Electromagnetic . | . . . . . Robot Hit Streak 9 | 3 9 3 . 3 Robot Miss Streak 5 | . 5 2 . 3 Penetration Max . | . . . . . Secondary Targets 1 | . 1 . . . Max Gunslinging Chain 1 | . 1 . . . Shots Hit Robots 58 | 3 43 4 . 8 Core Hits 32 | 2 21 4 . 5 Critical Kills . | . . . . . Critical Parts Destroyed . | . . . . . Critical Strikes 1 | 1 . . . . Burn 1 | 1 . . . . Melee Attacks . | . . . . . Impact . | . . . . . Slashing . | . . . . . Piercing . | . . . . . Sneak Attacks . | . . . . . Combat Hostiles . | . . . . . Follow-up Attacks . | . . . . . Damage Inflicted 1258 | 38 898 159 . 163 Guns 571 | 38 427 36 . 70 Cannons . | . . . . . Explosions 687 | . 471 123 . 93 Melee . | . . . . . Ramming . | . . . . . Kinetic . | . . . . . Thermal 571 | 38 427 36 . 70 Explosive 687 | . 471 123 . 93 Electromagnetic . | . . . . . Impact . | . . . . . Slashing . | . . . . . Piercing . | . . . . . Highest Corruption 3 | . . . . 3 Average Corruption 3 | . . . . 3 Corruption Purged . | . . . . . Corruption Blocked . | . . . . . Effects 1 | . . . . 1 Data Loss (minor) 1 | . . . . 1 Overload Shots . | . . . . . Overflow Damage 21 | . 7 . . 14 Projectiles . | . . . . . Explosions 21 | . 7 . . 14 Melee . | . . . . . Knockbacks . | . . . . . Impact . | . . . . . Kinetic . | . . . . . Secondary . | . . . . . Self-Inflicted Damage 132 | . 39 14 . 79 Shots 6 | . 3 1 . 2 Rammed . | . . . . . Targets Rammed . | . . . . . Kicked . | . . . . . Crushed . | . . . . . Highest Temperature 363 | 78 363 36 . 108 Average Temperature 130 | 39 169 22 . 46 Received Heat Transfer 298 | . 258 . . 40 Effects 5 | . 5 . . . Energy Bleed 1 | . 1 . . . Interference 2 | . 2 . . . Short Circuit 1 | . 1 . . . Damage (minor) 1 | . 1 . . . Siege Activations . | . . . . . Martial Activations . | . . . . . Shielding Activations . | . . . . . Robots Disrupted . | . . . . . Combat Hostiles . | . . . . . Robots Corrupted . | . . . . . Combat Hostiles . | . . . . . Parts Fried . | . . . . . Impact Corruptions . | . . . . . Robots Melted . | . . . . . Combat Hostiles . | . . . . . Parts Melted 2 | 2 . . . . Heat Transferred 1646 | 185 1188 99 . 174 Parts Sabotaged . | . . . . . Parts Stolen . | . . . . . Parts Stripped . | . . . . . Power Chain Reactions . | . . . . . Alert | -11 -10 -10 -10 -9 ------- Run | Yrd Mat Min Exi Min Maximum Alert Level . | . . . . . Low Security (%) 100 | 100 100 100 . 100 Level 1 . | . . . . . Level 2 . | . . . . . Level 3 . | . . . . . Level 4 . | . . . . . Level 5 . | . . . . . High Security . | . . . . . Max Security . | . . . . . Peak Influence 92 | 5 89 92 . 9 Initial 26 | . . 26 . . Average 24 | . 35 42 . . Influence Increases 329 | 5 218 97 . 9 Destroy 0b10 Robot/C 180 | . 120 60 . . Destroy 0b10 Robot/NC 35 | 5 25 5 . . Destroy Leader 40 | . 30 10 . . Disable Machine 30 | . 15 15 . . Destroy Structure 44 | . 28 7 . 9 Influence Decreases 329 | 5 149 109 57 9 Entered New Map 100 | . . 43 57 . Time Decay 200 | 5 129 66 . . Lost Part 29 | . 20 . . 9 Squads Dispatched 2 | . 2 . . . Investigation 1 | . 1 . . . Extermination . | . . . . . Reinforcement 1 | . 1 . . . Assault . | . . . . . Garrison . | . . . . . Intercept . | . . . . . Searches Triggered . | . . . . . Construction Impeded . | . . . . . Haulers Reinforced . | . . . . . Active Scanning Responses . | . . . . . Cargo Convoy Interrupts . | . . . . . Stealth | -11 -10 -10 -10 -9 --------- Run | Yrd Mat Min Exi Min Distress Signals 2 | . 2 . . . Communications Jammed . | . . . . . Distress Signals . | . . . . . Times Spotted 22 | . 12 3 . 7 Peak Tracking Total 3 | . 3 3 . 3 Tactical Retreats 1 | . . . . 1 Traps | -11 -10 -10 -10 -9 ------- Run | Yrd Mat Min Exi Min Traps Triggered 1 | . 1 . . . Indirectly 1 | . 1 . . . Trap Hack Attempts . | . . . . . Triggered . | . . . . . Disarmed . | . . . . . Reprogrammed . | . . . . . Reused . | . . . . . Traps Extracted . | . . . . . Installed . | . . . . . Triggered . | . . . . . Machines | -11 -10 -10 -10 -9 ---------- Run | Yrd Mat Min Exi Min Machines Disabled 2 | . 1 1 . . Max in Single Turn 1 | . 1 1 . . Machines Repaired . | . . . . . Machines Dismantled . | . . . . . Machines Sabotaged . | . . . . . Overloaded Fab Kills . | . . . . . Hacking | -11 -10 -10 -10 -9 --------- Run | Yrd Mat Min Exi Min Machines Accessed 4 | . 2 . 2 . Terminals 2 | . 2 . . . Fabricators . | . . . . . Repair Stations . | . . . . . Recycling Units . | . . . . . Scanalyzers . | . . . . . Garrison Access . | . . . . . Total Hacks 4 | . 2 . 2 . Successful 2 | . . . 2 . Failed 2 | . 2 . . . Catastrophic 2 | . 2 . . . Database Lockouts . | . . . . . Manual 2 | . 1 . 1 . Terminals 2 | . 2 . . . Fabricators . | . . . . . Repair Stations . | . . . . . Recycling Units . | . . . . . Scanalyzers . | . . . . . Garrison Access . | . . . . . Terminal Hacks 2 | . . . 2 . Record 1 | . . . 1 . Proto ID Catalog 1 | . . . 1 . Fabricator Hacks . | . . . . . Repair Station Hacks . | . . . . . Recycling Unit Hacks . | . . . . . Scanalyzer . | . . . . . Garrison Access Hacks . | . . . . . Unauthorized Hacks . | . . . . . Terminals . | . . . . . Fabricators . | . . . . . Repair Stations . | . . . . . Recycling Units . | . . . . . Scanalyzers . | . . . . . Garrison Access . | . . . . . Data Cores Recovered . | . . . . . Used . | . . . . . Hacking Detections 2 | . 2 . . . Full Trace Events . | . . . . . Feedback Events . | . . . . . Feedback Blocked . | . . . . . Robot Schematics Acquired . | . . . . . Robots Built . | . . . . . Authchips . | . . . . . Time . | . . . . . Total Robot Build Rating . | . . . . . Part Schematics Acquired . | . . . . . Parts Built . | . . . . . Authchips . | . . . . . Time . | . . . . . Total Part Build Rating . | . . . . . Part Studies Acquired . | . . . . . Parts Repaired . | . . . . . Time . | . . . . . Parts Recycled . | . . . . . Recycled Matter . | . . . . . Retrieved Matter . | . . . . . Retrieved Components . | . . . . . Parts Scanalyzed . | . . . . . Part Schematics Acquired . | . . . . . Parts Damaged . | . . . . . Bothacking | -11 -10 -10 -10 -9 ------------ Run | Yrd Mat Min Exi Min Used RIF Installer . | . . . . . Robots Hacked . | . . . . . Non-combat . | . . . . . Combat . | . . . . . Robot Hacks Applied . | . . . . . Relay Couplers Released . | . . . . . Fabnet Peak Effective % . | . . . . . Robots Rewired . | . . . . . Allies Hacked . | . . . . . Hacks Repelled . | . . . . . Allies | -11 -10 -10 -10 -9 -------- Run | Yrd Mat Min Exi Min Total Allies . | . . . . . Largest Group . | . . . . . Highest-Rated Group . | . . . . . Highest-Rated Ally . | . . . . . Total Orders . | . . . . . Ally Attacks . | . . . . . Total Damage . | . . . . . Kills . | . . . . . Allies Corrupted . | . . . . . Allies Melted . | . . . . . Intel | -11 -10 -10 -10 -9 ------- Run | Yrd Mat Min Exi Min Active Infowar (turns) 475 | . . 44 312 119 Structural 475 | . . 44 312 119 Robot Analysis Total . | . . . . . Derelict Logs Recovered . | . . . . . Drone Launches . | . . . . . Drone Recoveries . | . . . . . Exploration | -11 -10 -10 -10 -9 ------------- Run | Yrd Mat Min Exi Min Turns Passed 1043 | 88 327 150 312 166 Spaces Moved 599 | 44 155 89 215 96 Core 4 | 4 . . . . Treads 82 | 40 42 . . . Legs . | . . . . . Wheels 513 | . 113 89 215 96 Hover . | . . . . . Flight . | . . . . . Fastest Speed 50 | 50 100 145 145 130 Average Speed 138 | 150 118 145 145 142 Slowest Speed 160 | 160 160 145 145 145 Overloaded Moves . | . . . . . Propulsion Burnouts . | . . . . . Robots Hopped . | . . . . . Potential Cave-ins . | . . . . . Cave-ins Triggered . | . . . . . Exploration Rate (%) 28 | 3 35 15 60 31 Regions Visited 4 Branch Regions 3 Pre-discovered Areas 1 | . . . 1 . Known Exits Taken . | . . . . . Unknown Exits Taken 4 | 1 1 1 1 . Scrap Searched 2 | . . 1 . 1 Spaces Dug . | . . . . . Terrain Destroyed 54 | . 26 7 . 21 Melee . | . . . . . Projectile . | . . . . . AOE 54 | . 26 7 . 21 Terrain Rammed . | . . . . . Walls Destroyed . | . . . . . Machines Disabled . | . . . . . Actions | -11 -10 -10 -10 -9 --------- Run | Yrd Mat Min Exi Min Total 708 | 59 223 101 215 110 Wait 19 | . 14 3 . 2 Move 595 | 43 154 88 214 96 Hop . | . . . . . Pick Up 12 | 7 1 3 1 . Fast Attach 10 | 7 2 1 . . Attach 5 | . 2 . . 3 Detach 4 | . 2 1 . 1 Swap 10 | . 8 1 . 1 Drop 2 | . 2 . . . Fire 51 | 2 38 4 . 7 Melee . | . . . . . Ram . | . . . . . Kick . | . . . . . Crush . | . . . . . Escape Stasis . | . . . . . Rewire . | . . . . . Trap . | . . . . . Miscellaneous . | . . . . . Route ------- -11/Scrapyard -10/Materials -10/Mines -10/Exiles -9/Mines History --------- Turn | Location | Event 37 | -11/Scrapyard | Discovered new exit (range 16) 89 | -11/Scrapyard | Entered Materials 316 | -10/Materials | Build established: Mutant 388 | -10/Materials | Discovered new exit (range 14) 416 | -10/Materials | Entered Mines 560 | -10/Mines | Deemed a non-threat by the Exiles lab entrance 560 | -10/Mines | Discovered new exit (range 5) 566 | -10/Mines | Entered Exiles 603 | -10/Exiles | Met 8R-AWN 626 | -10/Exiles | Met EX-HEX 675 | -10/Exiles | Met EX-BIN 694 | -10/Exiles | Aligned with FarCom system 696 | -10/Exiles | Given EX-Vault access code 730 | -10/Exiles | Opened EX-Vault 738 | -10/Exiles | Found YOLO Cannon 769 | -10/Exiles | Warned to stay clear of 0b10 Research branches 813 | -10/Exiles | Met EX-DEC 820 | -10/Exiles | Learned location of Zion (-6) 865 | -10/Exiles | Discovered new exit (range 11) 878 | -10/Exiles | Left Exiles lab with YOLO Cannon 878 | -10/Exiles | Entered Mines 904 | -9/Mines | Assembled infested the area 1032 | -9/Mines | Core integrity fell below 50% 1036 | -9/Mines | Core integrity fell below 20% 1044 | -9/Mines | Destroyed by as-59486 with Assembled Blade Last Messages --------------- 00937_ T-07 Excavator destroyed. 00939_ K-01 Serf collects debris. 00967_ K-01 Serf destroyed. 00997_ Structural Scanner destroyed. 00997_ System corrupted by crushing effect (+3). 01000_ as-53123 destroyed. 01003_ System corrupted: Component data lost. 01003_ as-21984 destroyed. 01023_ Searching scrap... 01023_ Found Med. Armor Plating. 01023_ Found Visual Processing Unit. 01023_ Found 40 Matter. 01029_ Lgt. Treads destroyed. 01029_ Lgt. Nuclear Core destroyed. 01031_ The unstable cave ceiling collapses. 01032_ Acquired 10 matter. 01032_ as-24844 destroyed. 01033_ Acquired 2 matter. 01035_ Destroyed Asb. Hover Unit. 01036_ Grenade Launcher destroyed. Map ----- +----------------------------------------------------+ | | | | | | | | | | | | | ?????????????????????????????????????????????????? | | ??????????????????????????????????#########??????? | | ?????????????????????????????????#############???# | | ?????????????????????????????????### ######### | | ?????????????????????????????????## ###### | | ?????????????????????????????????## #### | | ?????????????????????????????????### #### | | ??????????????????????????????????## ## | | ??????????????????????????????????### | | ???????????????????????????????????### | | ???????????????????????????????????#### | | ????????????????????????????????????### | | ?????????????????????????????????????### | | ????????????????????????????############ | | ?????????????????????????############### | | ?????????????????????????## % | | ??????????????????????##### ########### % * | | ??????????????????????# ## ############ =%= | | ?????????????????????## #???????#### | | | ?????????????????????# @! #?????????#### | | ?????????????????????# a ?????#### | | ?????????????????????# #?#### | | ?????????????????????# #??### * | | ?????????????????????# % a%a #??### % | | ?????????????????????###% # # ###### | | ???????????????????????# ### # #? ####### = | | ??????????????????????? |# ??# #??### ## % | | ??????????????????????? !?#??? #???## ### ### | | ??????????????????????"""?????? ???## ### #### | | ??????????????????????"""?????? ????????## ### | | ??????????????????????"""??????? #?????? ##? | | ?????????????????????????????????#??????### ##? | | ????????????????????????????????????????### ###? | | ?????????????????????????????????????????## ###? | | ?????????????????????????????????????????## ##?? | | ?????????????????????????????????????????## ###?? | | ?????????????????????????????????????????#######?? | | ?????????????????????????????????????????######??? | | ?????????????????????????????????????????????????? | | ?????????????????????????????????????????????????? | | ?????????????????????????????????????????????????? | | ?????????????????????????????????????????????????? | | ?????????????????????????????????????????????????? | | ?????????????????????????????????????????????????? | +----------------------------------------------------+ Best States ------------- Heat Dissipation 39 Energy Generation 14 Energy Capacity 250 Matter Stores 300 Matter Capacity 300 Sight Range 16 Terrain Scan Density 10 Evasion (%) 40 Recoil Reduction 2 Item Schematics ----------------- None Robot Schematics ------------------ None Fabricated ------------ Nothing Repaired ---------- Nothing Studied --------- None Alien Tech Used ----------------- None Achievements -------------- None Challenges ------------ None Game ------ Seed StasisMetafieldGriptreads Manual? 0 Play Time 00:08:27 Cumulative 96.4 hours Start 2026.02.09 @ 16:17:51 End 2026.02.09 @ 16:25:33 Sessions 1 Manual Loads 0 Difficulty Rogue Special Mode None Game No. 66 Rogue 62 Adventurer 4 Explorer 0 Win Type - Total 4 Types 4/0/0/0/0/0/0/0/0/0 Lore% 55 Gallery% 49 Achievement% 39 Wizard Run 0 Options --------- Layout 2 ASCII 0 Keyboard 1 Movement Vi Keybinds 0 Fullscreen 0 Font 18/SmallcapsGlow Map View 50x44 Zoom Use 0% Tactical HUD 1 Map Filters NONE Filters NONE Steam 1 RUN: f3735c42-1da1-4cc9-a4e7-9fc138ce6fd9